bitfinex/quotes_SOLUSD_20250930
["timestamp","ask_amount","ask_price","bid_price","bid_amount"]
[1759252598991,0.48861526,205.88,205.85,34.36]
[1759252599205,1.19861526,205.88,205.85,34.36]
[1759252599488,5.34557771,205.89,205.85,34.36]
[1759252599691,6.05557771,205.89,205.85,34.36]
[1759252600101,134.21,205.88,205.81,14.43647854]
[1759252600300,134.21,205.88,205.8,14.24559401]
[1759252600301,1.69133827,205.86,205.8,34.34]
[1759252600503,0.48861526,205.85,205.8,48.92746092]
[1759252600704,0.71,205.84,205.8,34.34]
[1759252600910,1.69133827,205.81,205.77,0.2]
[1759252601125,0.48861526,205.8,205.77,0.2]
[1759252601315,1.19861526,205.8,205.77,0.2]
[1759252602100,5.56932261,205.79,205.77,0.2]
[1759252602315,1.19861526,205.78,205.77,0.2]
[1759252602523,2.88995353,205.78,205.77,0.2]
[1759252602910,1.19861526,205.78,205.77,0.2]
[1759252603117,0.48861526,205.78,205.77,0.2]
[1759252603315,1.19861526,205.78,205.77,0.2]
[1759252603821,2.88995353,205.78,205.77,0.2]
[1759252604026,7.74951228,205.78,205.77,0.2]
[1759252604603,6.05817401,205.78,205.77,0.2]
[1759252604799,7.74951228,205.78,205.77,0.2]
[1759252605918,0.48861526,205.78,205.77,0.2]
[1759252606119,1.69133827,205.78,205.77,0.2]
[1759252606323,1.69133827,205.78,205.73,0.65]
[1759252606324,133.3,205.76,205.73,0.65]
[1759252606511,133.3,205.76,205.74,0.65]
[1759252607214,133.3,205.76,205.72,0.65]
[1759252607414,133.3,205.76,205.71,4.86121238]
[1759252607415,133.3,205.76,205.73,0.65]
[1759252608043,133.3,205.76,205.74,0.65]
[1759252608343,135.70133827,205.76,205.7,49.28735094]
[1759252608550,2.17995353,205.75,205.7,49.28735094]
[1759252608720,2.17995353,205.75,205.7,48.63735094]
[1759252609040,2.17995353,205.75,205.71,0.65]
[1759252609418,2.88995353,205.75,205.7,53.49879707]
[1759252609613,2.40133827,205.74,205.7,48.63735094]
[1759252609931,1.69133827,205.72,205.69,0.2]
[1759252610133,4.8600321,205.76,205.69,0.2]
[1759252610134,135.47995353,205.71,205.69,0.2]
[1759252610449,7.26278698,205.7,205.69,0.2]
[1759252610830,14.02814006,205.7,205.69,0.2]
[1759252611018,14.51675532,205.7,205.69,0.2]
[1759252611530,6.06006397,205.7,205.69,0.2]
[1759252611838,7.75140224,205.7,205.69,0.2]
[1759252612718,2.88995353,205.7,205.69,0.2]
[1759252612917,1.69133827,205.7,205.69,0.2]
[1759252613142,2.17995353,205.71,205.69,0.2]
[1759252613343,0.48861526,205.72,205.69,0.86]
[1759252613861,1.69133827,205.71,205.69,0.86]
[1759252614155,2.17995353,205.72,205.69,0.86]
[1759252614330,21.28861526,205.72,205.69,0.86]
[1759252614541,22.97995353,205.72,205.69,0.86]
[1759252614752,21.28861526,205.72,205.69,0.86]
[1759252615639,0.48861526,205.72,205.69,0.2]
[1759252618558,133.3,205.71,205.7,0.66]
[1759252619062,133.3,205.71,205.7,5.52144871]
[1759252620959,133.3,205.71,205.7,39.24144871]
[1759252621468,133.3,205.71,205.7,39.90144871]
[1759252623842,133.3,205.71,205.7,34.38]
[1759252624359,133.3,205.71,205.7,39.24144871]
[1759252625142,133.3,205.71,205.7,39.90144871]
[1759252626961,133.3,205.71,205.7,53.49704272]
[1759252627147,133.3,205.71,205.7,53.78136586]
[1759252627347,14.6017376,205.84,205.75,13.59559401]
[1759252627651,1.16861526,205.85,205.76,35.04]
[1759252627974,1.16861526,205.85,205.78,13.59559401]
[1759252628166,138.15743013,205.88,205.8,4.85908649]
[1759252628167,0.48861526,205.86,205.8,4.85908649]
[1759252628460,0.48861526,205.86,205.81,34.38]
[1759252628753,1.16861526,205.86,205.81,35.04]
[1759252628985,0.48861526,205.87,205.82,0.66]
[1759252629134,1.69133827,205.92,205.83,0.66]
[1759252629337,2.85995353,205.91,205.83,15.20157003]
[1759252629571,0.68,205.9,205.83,0.66]
[1759252629765,0.48861526,205.89,205.83,0.66]
[1759252630271,0.48861526,205.89,205.84,4.85814224]
[1759252630444,1.16861526,205.89,205.85,34.4]
[1759252630869,0.68,205.92,205.86,0.66]
[1759252631037,1.16861526,205.92,205.86,0.66]
[1759252631242,7.12260592,205.95,205.86,0.66]
[1759252631565,7.12260592,205.95,205.87,13.59559401]
[1759252631566,0.68,205.94,205.87,13.59559401]
[1759252632092,0.48861526,205.95,205.88,0.66]
[1759252632279,0.48861526,205.95,205.9,4.85672656]
[1759252632442,0.48861526,205.95,205.9,5.51672656]
[1759252633070,12.75327343,205.98,205.92,6.62979261]
[1759252633251,6.12348082,205.98,205.93,6.62979261]
[1759252633567,0.68,205.97,205.93,34.38]
[1759252634165,0.68,205.96,205.93,34.38]
[1759252634755,0.68,205.96,205.93,41.00979261]
[1759252635463,0.68,205.96,205.93,34.38]
[1759252636390,12.65395835,205.95,205.92,34.36]
[1759252636791,0.68,205.94,205.92,34.36]
[1759252637678,0.48861526,205.95,205.92,34.36]
[1759252637867,1.14861526,205.95,205.92,34.36]
[1759252639569,1.14861526,205.95,205.9,11.48651144]
[1759252639770,12.23729518,205.98,205.94,6.62979261]
[1759252639771,0.1,205.98,205.94,6.62979261]
[1759252639990,0.1,205.98,205.95,0.67]
[1759252640189,0.1,205.98,205.96,34.4]
[1759252640383,0.1,205.98,205.93,13.59559401]
[1759252640578,0.76,205.98,205.94,41.02979261]
[1759252640879,0.1,205.98,205.94,41.69979261]
[1759252641085,0.1,205.98,205.95,0.67]
[1759252641284,0.1,205.98,205.94,41.02979261]
[1759252641479,0.76,205.98,205.94,41.02979261]
[1759252641682,0.1,205.98,205.94,41.02979261]
[1759252642483,0.1,205.98,205.94,46.55556472]
[1759252642683,0.1,205.98,205.95,7.29979261]
[1759252643302,0.1,205.98,205.95,6.62979261]
[1759252643804,62.72334567,206.07,205.93,19.11160686]
[1759252643805,16.98977791,206.01,206.0,92.07159213]
[1759252644104,23.61957052,206.01,206.0,92.07159213]
[1759252645891,24.32957052,206.01,206.0,92.07159213]
[1759252646885,24.61389366,206.01,206.0,92.07159213]
[1759252647510,24.61389366,206.01,206.0,65.55868059]
[1759252650196,20.62746574,206.01,206.0,65.55868059]
[1759252650407,20.62746574,206.01,206.0,38.3742083]
[1759252652109,34.22305975,206.01,206.0,38.3742083]
[1759252655701,17.27410105,206.01,206.0,38.3742083]
[1759252656209,19.91746574,206.01,206.0,138.3742083]
[1759252656908,19.91746574,206.01,206.0,5.0742083]
[1759252657904,4.85413329,206.01,206.0,5.0742083]
[1759252658117,7.78182112,206.01,206.0,5.0742083]
[1759252659517,28.29749798,206.01,206.0,5.7342083]
[1759252660216,28.29749798,206.01,206.0,5.0742083]
[1759252660624,28.29749798,206.01,206.0,5.7342083]
[1759252660830,28.29749798,206.01,206.0,5.0742083]
[1759252664418,29.29182112,206.01,206.0,5.0742083]
[1759252665708,28.58182112,206.01,206.0,5.0742083]
[1759252666518,29.29182112,206.01,206.0,5.0742083]
[1759252666722,28.58182112,206.01,206.0,5.0742083]
[1759252668005,62.86182112,206.01,206.0,5.0742083]
[1759252668515,127.7657917,205.96,205.9,39.13664873]
[1759252668723,2.64336469,205.94,205.9,34.28]
[1759252668904,127.7657917,205.93,205.9,34.28]
[1759252669105,130.40915639,205.93,205.89,4.85693877]
[1759252669532,2.64336469,205.91,205.87,4.85719944]
[1759252669733,2.64336469,205.92,205.87,39.13719944]
[1759252669921,130.40915639,205.93,205.87,41.78056413]
[1759252670725,130.40915639,205.93,205.88,0.66]
[1759252671832,2.64336469,205.9,205.89,0.66]
[1759252672710,3.35336469,205.9,205.84,0.66]
[1759252672915,2.64336469,205.85,205.84,0.66]
[1759252673734,2.64336469,205.86,205.84,0.66]
[1759252673935,2.64336469,205.86,205.85,0.66]
[1759252674731,4.8575804,205.87,205.85,0.66]
[1759252675038,2.64336469,205.86,205.85,0.66]
[1759252676409,7.50103495,205.86,205.85,0.66]
[1759252676610,2.64336469,205.86,205.85,0.66]
[1759252677933,151.20915639,205.92,205.85,0.66]
[1759252677934,7.50009125,205.9,205.85,0.66]
[1759252678316,7.50009125,205.9,205.85,3.30336469]
[1759252678517,7.50009125,205.9,205.86,0.66]
[1759252678919,7.50009125,205.9,205.87,0.66]
[1759252679114,7.50009125,205.9,205.88,0.66]
[1759252679617,2.64336469,205.89,205.84,5.51812445]
[1759252679822,2.64336469,205.87,205.85,0.66]
[1759252680022,2.64336469,205.87,205.84,4.85812445]
[1759252680023,127.7657917,205.86,205.82,14.49121517]
[1759252680321,2.64336469,205.85,205.83,0.66]
[1759252680639,130.40915639,205.86,205.83,0.66]
[1759252681340,127.7657917,205.86,205.83,0.66]
[1759252681728,127.7657917,205.86,205.82,39.15858115]
[1759252681729,128.4657917,205.85,205.79,0.66]
[1759252681934,2.64336469,205.8,205.79,0.66]
[1759252682235,2.64336469,205.8,205.77,0.66]
[1759252682432,2.64336469,205.8,205.78,0.66]
[1759252682626,127.7657917,205.84,205.79,0.66]
[1759252682832,2.64336469,205.83,205.79,0.66]
[1759252683036,2.64336469,205.83,205.78,2.64336469]
[1759252683241,2.64336469,205.83,205.79,0.66]
[1759252683433,2.64336469,205.83,205.8,0.66]
[1759252683743,2.64336469,205.83,205.81,0.66]
[1759252684044,130.40915639,205.84,205.81,0.66]
[1759252684343,2.64336469,205.83,205.79,0.66]
[1759252684527,2.64336469,205.82,205.79,0.66]
[1759252685042,2.64336469,205.82,205.8,0.66]
[1759252685230,2.64336469,205.83,205.8,0.66]
[1759252685620,2.64336469,205.83,205.81,0.66]
[1759252685826,2.64336469,205.83,205.79,4.85931821]
[1759252686035,2.64336469,205.83,205.8,0.66]
[1759252686234,2.64336469,205.82,205.8,0.66]
[1759252686437,2.64336469,205.83,205.8,0.66]
[1759252688336,2.64336469,205.82,205.79,34.3]
[1759252688538,2.64336469,205.82,205.79,34.96]
[1759252688730,2.64336469,205.82,205.79,34.3]
[1759252689131,0.7,205.83,205.79,34.96]
[1759252689338,2.64336469,205.81,205.77,4.85958376]
[1759252689541,128.4657917,205.8,205.74,37.9]
[1759252689843,2.64336469,205.76,205.73,34.96]
[1759252690342,2.64336469,205.77,205.74,0.66]
[1759252690542,2.64336469,205.78,205.75,0.66]
[1759252691448,2.64336469,205.77,205.75,0.66]
[1759252691645,132.62528649,205.79,205.68,0.86]
[1759252691646,3.34336469,205.76,205.68,0.86]
[1759252691943,2.64336469,205.71,205.68,0.86]
[1759252692338,1.69569133,205.71,205.68,0.86]
[1759252692737,1.69569133,205.7,205.68,0.2]
[1759252693449,7.25714004,205.7,205.68,0.2]
[1759252694137,14.03990536,205.7,205.68,0.2]
[1759252694838,48.35990536,205.7,205.68,0.2]
[1759252695038,0.28432314,205.69,205.68,0.2]
[1759252695244,0.28432314,205.69,205.66,0.2]
[1759252695245,21.08432314,205.67,205.66,0.2]
[1759252695552,23.48001447,205.67,205.66,0.2]
[1759252696047,57.80001447,205.67,205.66,0.2]
[1759252697038,62.66217229,205.67,205.66,0.2]
[1759252697449,0.28432314,205.66,205.64,0.2]
[1759252697642,1.69569133,205.62,205.61,0.2]
[1759252697834,2.41569133,205.62,205.61,0.2]
[1759252698725,1.69569133,205.62,205.61,0.2]
[1759252698929,4.86263068,205.65,205.61,0.2]
[1759252699150,1.69569133,205.62,205.61,0.2]
[1759252699730,1.69569133,205.62,205.61,0.91]
[1759252701058,21.52,205.67,205.61,5.77357667]
[1759252701237,1.69569133,205.64,205.61,5.77357667]
[1759252701438,1.69569133,205.64,205.62,0.71]
[1759252702138,1.69569133,205.63,205.61,0.2]
[1759252702357,1.69569133,205.62,205.61,0.2]
[1759252702536,1.69569133,205.62,205.61,0.91]
[1759252703036,1.69569133,205.62,205.61,0.2]
[1759252703550,1.69569133,205.63,205.61,0.9]
[1759252704145,127.7657917,205.62,205.61,0.9]
[1759252705032,129.46148303,205.62,205.61,0.2]
[1759252708062,7.24903147,205.62,205.61,0.2]
[1759252708544,7.25140861,205.62,205.61,0.2]
[1759252709869,60.82635598,205.62,205.58,0.39584472]
[1759252710159,60.82635598,205.62,205.56,0.2]
[1759252710160,0.28432314,205.58,205.56,0.2]
[1759252710357,37.01239161,205.57,205.56,0.2]
[1759252710849,38.96156686,205.57,205.56,0.2]
[1759252711669,42.12802142,205.57,205.56,0.2]
[1759252711857,43.82608989,205.57,205.56,0.2]
[1759252715569,9.48608989,205.57,205.56,0.2]
[1759252715766,43.82608989,205.57,205.56,0.2]
[1759252721574,24.31670071,205.62,205.56,0.2]
[1759252721575,0.69,205.65,205.56,0.9]
[1759252721887,1.69806847,205.6,205.57,0.7]
[1759252722088,4.86616608,205.62,205.57,0.7]
[1759252722089,6.56423455,205.62,205.57,0.7]
[1759252722258,4.86616608,205.62,205.57,0.7]
[1759252722678,1.69806847,205.64,205.57,0.7]
[1759252723676,4.86263854,205.65,205.58,4.8642864]
[1759252723984,1.69806847,205.63,205.59,0.7]
[1759252724279,1.69806847,205.61,205.59,0.7]
[1759252724961,1.69806847,205.61,205.57,0.7]
[1759252725278,1.69806847,205.6,205.57,0.7]
[1759252725474,1.69806847,205.6,205.58,0.7]
[1759252725778,6.56167154,205.61,205.58,0.7]
[1759252726492,6.56167154,205.61,205.56,5.06466502]
[1759252726684,6.56167154,205.61,205.57,0.7]
[1759252726870,6.56167154,205.61,205.58,0.7]
[1759252727794,133.5,205.6,205.58,0.7]
[1759252728179,133.5,205.6,205.59,0.7]
[1759252728380,133.5,205.6,205.56,5.06474612]
[1759252728578,133.5,205.59,205.57,0.7]
[1759252729389,133.5,205.59,205.58,0.7]
[1759252735399,133.5,205.59,205.56,5.74470311]
[1759252735701,133.5,205.59,205.57,0.68]
[1759252735896,2.37806847,205.58,205.56,0.2]
[1759252736078,1.69806847,205.57,205.56,0.2]
[1759252736495,2.37806847,205.57,205.56,0.2]
[1759252737299,7.2425915,205.57,205.56,0.2]
[1759252738399,2.37806847,205.57,205.56,0.2]
[1759252738585,41.5825915,205.57,205.56,0.2]
[1759252741289,7.2425915,205.57,205.56,0.2]
[1759252741512,41.5825915,205.57,205.56,0.2]
[1759252742389,40.9025915,205.57,205.56,0.2]
[1759252742715,41.5825915,205.57,205.56,0.2]
[1759252743591,4.86431391,205.58,205.56,0.2]
[1759252743793,6.56238238,205.58,205.56,0.88]
[1759252743999,6.56238238,205.58,205.56,0.2]
[1759252744396,1.69806847,205.57,205.56,0.2]
[1759252745117,6.56238238,205.58,205.56,0.88]
[1759252745414,4.86431391,205.58,205.56,0.88]
[1759252745617,22.49806847,205.59,205.57,0.68]
[1759252745817,133.5,205.58,205.57,0.68]
[1759252746116,133.5,205.58,205.56,0.2]
[1759252746306,133.5,205.58,205.56,0.88]
[1759252746706,133.5,205.58,205.57,0.68]
[1759252746906,135.19806847,205.58,205.56,0.2]
[1759252747216,135.19806847,205.58,205.56,0.88]
[1759252747728,135.19806847,205.57,205.56,0.2]
[1759252747903,2.66239161,205.57,205.56,0.2]
[1759252749614,20.8,205.55,205.49,0.2]
[1759252749826,1.69806847,205.5,205.49,0.2]
[1759252750208,23.17806847,205.5,205.49,0.2]
[1759252750530,57.80239161,205.5,205.49,0.2]
[1759252751218,61.65830807,205.5,205.49,0.2]
[1759252751517,57.80239161,205.5,205.49,0.2]
[1759252752029,62.66857165,205.5,205.49,0.2]
[1759252753010,28.32857165,205.5,205.49,0.2]
[1759252753219,55.14,205.5,205.49,0.2]
[1759252753417,27.36424851,205.5,205.49,0.2]
[1759252754221,28.32150114,205.5,205.49,0.2]
[1759252754932,20.8,205.5,205.49,0.2]
[1759252755231,2.6553211,205.51,205.49,0.2]
[1759252755420,2.6553211,205.5,205.49,0.2]
[1759252756040,7.52150114,205.5,205.49,0.2]
[1759252757037,2.6553211,205.5,205.49,0.2]
[1759252757342,133.5,205.51,205.49,0.88]
[1759252758133,133.5,205.51,205.49,0.2]
[1759252758320,133.5,205.51,205.5,0.69]
[1759252760214,133.5,205.51,205.5,5.55618004]
[1759252764439,133.5,205.58,205.51,13.59559401]
[1759252764647,133.5,205.58,205.52,0.72]
[1759252765557,2.6553211,205.53,205.49,0.2]
[1759252765770,2.6553211,205.5,205.49,0.2]
[1759252765935,57.7953211,205.5,205.49,0.2]
[1759252766138,0.66,205.5,205.49,0.2]
[1759252766337,3.3153211,205.5,205.49,0.2]
[1759252766533,8.18150114,205.5,205.49,0.2]
[1759252769457,8.18192714,205.5,205.49,0.2]
[1759252769750,63.34192714,205.5,205.49,0.2]
[1759252771867,26.32618004,205.5,205.49,0.2]
[1759252772067,28.98192714,205.5,205.49,0.2]
[1759252774467,29.26625028,205.5,205.49,0.2]
[1759252775274,42.86184429,205.5,205.49,0.2]
[1759252775457,42.86184429,205.5,205.49,1e-08]
[1759252776964,40.20609719,205.5,205.49,1e-08]
[1759252777266,42.86184429,205.5,205.49,1e-08]
[1759252778472,133.49999999,205.49,205.45,0.92]
[1759252778666,133.49999999,205.49,205.46,0.72]
[1759252779172,133.49999999,205.49,205.47,0.72]
[1759252779475,133.49999999,205.49,205.48,0.72]
[1759252780471,138.3665013,205.49,205.46,0.72]
[1759252781777,2.6557471,205.48,205.45,0.2]
[1759252782071,2.6557471,205.46,205.45,0.2]
[1759252782374,7.52287452,205.46,205.45,0.2]
[1759252782777,8.18287452,205.46,205.45,0.2]
[1759252783872,8.46719766,205.46,205.45,0.2]
[1759252784255,3.60007024,205.46,205.45,0.2]
[1759252784954,7.52287452,205.46,205.45,0.2]
[1759252785268,138.36690139,205.47,205.45,0.92]
[1759252785862,4.8669014,205.47,205.45,0.92]
[1759252786061,13.10847357,205.53,205.46,0.72]
[1759252786392,2.6557471,205.5,205.46,0.72]
[1759252786562,2.6557471,205.48,205.45,0.2]
[1759252786761,2.6557471,205.46,205.45,0.2]
[1759252787475,2.6557471,205.47,205.45,0.2]
[1759252787784,34.36,205.48,205.45,0.2]
[1759252787963,2.6557471,205.47,205.45,0.2]
[1759252788371,41.88246031,205.48,205.45,0.92]
[1759252788681,39.22671321,205.48,205.45,0.92]
[1759252788886,4.86671321,205.48,205.45,0.92]
[1759252789564,7.52246031,205.48,205.45,0.2]
[1759252789776,4.86671321,205.48,205.45,0.2]
[1759252789982,7.52246031,205.48,205.45,0.2]
[1759252790379,7.52246031,205.48,205.45,0.92]
[1759252791704,7.52246031,205.48,205.45,0.2]
[1759252791989,7.52246031,205.48,205.45,0.92]
[1759252792196,4.86671321,205.48,205.45,0.92]
[1759252792374,7.52246031,205.48,205.45,0.92]
[1759252792684,7.52246031,205.48,205.46,0.72]
[1759252794204,7.52246031,205.48,205.45,0.2]
[1759252794391,7.52246031,205.48,205.45,0.9]
[1759252794702,7.52246031,205.48,205.45,0.2]
[1759252794904,4.86671321,205.48,205.45,0.2]
[1759252795290,133.49999999,205.49,205.46,0.7]
[1759252795597,133.49999999,205.49,205.47,0.7]
[1759252795802,133.49999999,205.49,205.48,0.7]
[1759252797327,133.49999999,205.49,205.46,2.6557471]
[1759252797328,133.49999999,205.49,205.46,3.3557471]
[1759252797489,133.49999999,205.49,205.47,0.7]
[1759252800310,133.49999999,205.49,205.47,5.56688638]
[1759252800612,133.49999999,205.49,205.47,0.7]
[1759252801301,133.49999999,205.49,205.46,7.52284329]
[1759252801302,133.49999999,205.49,205.46,2.6557471]
[1759252801502,133.49999999,205.49,205.47,0.7]
[1759252801718,133.49999999,205.49,205.45,0.9]
[1759252801719,133.49999999,205.48,205.45,0.9]
[1759252801896,136.83574709,205.48,205.45,0.2]
[1759252802100,134.17999999,205.48,205.45,0.2]
[1759252802616,139.04680675,205.48,205.45,0.2]
[1759252802998,133.49999999,205.47,205.45,0.2]
[1759252804095,133.49999999,205.47,205.45,0.9]
[1759252804298,133.49999999,205.47,205.46,0.7]
[1759252804598,133.49999999,205.47,205.45,7.72310202]
[1759252804912,133.49999999,205.47,205.45,8.42310202]
[1759252805114,133.49999999,205.47,205.45,3.5557471]
[1759252805301,133.49999999,205.47,205.45,0.2]
[1759252806920,133.49999999,205.47,205.45,5.0673272]
[1759252807119,133.49999999,205.47,205.45,0.2]
[1759252807512,133.49999999,205.47,205.45,0.9]
[1759252807913,133.49999999,205.47,205.45,5.76730965]
[1759252808115,133.49999999,205.46,205.45,5.76730965]
[1759252808998,133.49999999,205.46,205.45,8.42305675]
[1759252809318,133.49999999,205.46,205.45,8.42311142]
[1759252815823,133.49999999,205.53,205.46,13.59559401]
[1759252816002,133.49999999,205.53,205.48,13.59559401]
[1759252816210,133.49999999,205.53,205.51,1.69812089]
[1759252816720,133.49999999,205.53,205.49,0.7]
[1759252816919,134.17999999,205.53,205.5,1.69812089]
[1759252817325,133.49999999,205.53,205.51,4.86594326]
[1759252818039,133.49999999,205.53,205.51,6.56406415]
[1759252818337,133.49999999,205.53,205.52,2.37812089]
[1759252818715,133.49999999,205.53,205.52,36.71812089]
[1759252818929,133.49999999,205.53,205.52,36.03812089]
[1759252819133,133.49999999,205.53,205.51,4.86594326]
[1759252819134,134.19999999,205.53,205.5,1.69812089]
[1759252819318,134.19999999,205.53,205.5,6.56417667]
[1759252819847,0.7,205.52,205.48,34.34]
[1759252820011,0.7,205.51,205.48,34.34]
[1759252820736,0.7,205.5,205.48,34.34]
[1759252820932,140.06366574,205.53,205.48,34.34]
[1759252820933,0.7,205.52,205.48,34.34]
[1759252821525,0.7,205.51,205.48,34.34]
[1759252823942,133.49999999,205.52,205.5,1.69812089]
[1759252824121,134.15999999,205.52,205.5,1.69812089]
[1759252824325,134.15999999,205.52,205.49,1.69812089]
[1759252824626,133.49999999,205.52,205.49,1.69812089]
[1759252824831,133.49999999,205.52,205.5,2.39812089]
[1759252825031,133.49999999,205.52,205.5,7.26428096]
[1759252825233,133.49999999,205.52,205.51,1.69812089]
[1759252825432,133.49999999,205.52,205.5,5.56616007]
[1759252826440,0.66,205.51,205.47,4.86669367]
[1759252826625,133.49999999,205.52,205.5,1.69812089]
[1759252826832,133.49999999,205.52,205.51,7.26406415]
[1759252827234,0.66,205.58,205.51,7.26406415]
[1759252827415,0.66,205.58,205.54,1.69812089]
[1759252827621,0.66,205.58,205.54,0.7]
[1759252827817,0.66,205.59,205.54,0.7]
[1759252828021,0.66,205.59,205.55,0.7]
[1759252828220,0.66,205.59,205.53,13.59559401]
[1759252828221,1.69758139,205.63,205.56,35.04]
[1759252828443,0.66,205.63,205.57,35.04]
[1759252828834,2.35758139,205.63,205.57,35.04]
[1759252829036,0.66,205.63,205.58,4.8642864]
[1759252829346,0.66,205.62,205.58,4.8642864]
[1759252829653,20.8,205.62,205.58,4.8642864]
[1759252829949,2.35758139,205.64,205.59,0.7]
[1759252830152,4.86265871,205.65,205.59,0.7]
[1759252830153,39.20237367,205.67,205.59,0.7]
[1759252830322,0.66,205.66,205.6,0.7]
[1759252830521,34.47731002,205.68,205.61,34.34]
[1759252830727,34.47731002,205.68,205.62,0.7]
[1759252830940,55.27731002,205.68,205.61,39.20345503]
[1759252831247,2.35758139,205.67,205.61,39.20345503]
[1759252831425,2.35758139,205.67,205.61,39.90345503]
[1759252831625,52.91972863,205.68,205.62,0.7]
[1759252831840,54.61731002,205.68,205.62,0.7]
[1759252832025,53.57972863,205.68,205.62,0.7]
[1759252832447,32.11972863,205.68,205.62,0.7]
[1759252833019,2.35758139,205.67,205.61,34.34]
[1759252833245,0.66,205.66,205.61,39.90355701]
[1759252833441,0.66,205.66,205.62,0.7]
[1759252833632,34.47731002,205.68,205.63,0.7]
[1759252833838,32.77972863,205.68,205.63,0.7]
[1759252834138,32.77972863,205.68,205.64,0.7]
[1759252834648,32.11972863,205.68,205.64,0.7]
[1759252834874,32.11972863,205.68,205.61,51.36249869]
[1759252834875,32.11972863,205.68,205.65,35.02]
[1759252835150,32.11972863,205.68,205.67,4.86215782]
[1759252835454,133.59999999,205.7,205.68,13.59559401]
[1759252835658,133.59999999,205.7,205.69,0.7]
[1759252836462,133.59999999,205.7,205.68,13.59559401]
[1759252836772,2.35758139,205.69,205.66,34.32]
[1759252836937,2.35758139,205.68,205.66,34.32]
[1759252837136,0.66,205.67,205.64,4.8628592]
[1759252837338,2.35758139,205.68,205.65,34.32]
[1759252837867,1.69758139,205.69,205.65,34.32]
[1759252838366,2.35758139,205.69,205.65,34.32]
[1759252838862,2.35758139,205.68,205.65,34.32]
[1759252839171,1.69758139,205.69,205.65,39.18253198]
[1759252839341,135.95758138,205.7,205.65,39.18253198]
[1759252839542,135.95758138,205.7,205.66,0.7]
[1759252839843,135.29758138,205.7,205.66,0.7]
[1759252840048,133.59999999,205.7,205.66,0.7]
[1759252840955,133.49999999,205.69,205.66,5.56218183]
[1759252841770,133.49999999,205.69,205.66,4.86218183]
[1759252842073,133.49999999,205.69,205.66,5.56218183]
[1759252842776,133.49999999,205.69,205.67,14.29559401]
[1759252842944,133.49999999,205.69,205.68,5.56192143]
[1759252843772,133.49999999,205.69,205.67,13.59559401]
[1759252843959,133.49999999,205.69,205.67,18.45774569]
[1759252844471,133.49999999,205.69,205.67,19.15774569]
[1759252844860,133.49999999,205.69,205.68,5.56192143]
[1759252845059,133.49999999,205.69,205.68,4.86192143]
[1759252845457,133.49999999,205.69,205.68,39.18192143]
[1759252846071,133.49999999,205.69,205.68,34.32]
[1759252846273,133.49999999,205.69,205.68,39.88192143]
[1759252847068,133.49999999,205.69,205.68,34.32]
[1759252847267,134.15999999,205.69,205.68,34.32]
[1759252847662,133.49999999,205.69,205.68,34.32]
[1759252848377,133.49999999,205.69,205.68,39.18192143]
[1759252849658,133.49999999,205.69,205.68,39.16192143]
[1759252850172,133.49999999,205.69,205.68,53.45751544]
[1759252850672,0.1,205.7,205.69,13.59559401]
[1759252850875,0.1,205.7,205.69,14.57991715]
[1759252851267,0.1,205.7,205.69,19.44160221]
[1759252851775,0.1,205.71,205.7,0.28432314]
[1759252851975,0.1,205.71,205.7,48.87991715]
[1759252853084,0.1,205.71,205.7,49.47991715]
[1759252853264,0.1,205.71,205.7,54.34136586]
[1759252855187,1e-08,205.71,205.7,54.34136586]
[1759252856186,0.1,205.79,205.7,54.34136586]
[1759252856187,0.1,205.79,205.75,13.59559401]
[1759252856381,0.1,205.79,205.76,34.3]